[Event "Estonian Women's Chess Championship 2021"]
[Site "Tallinn, Paul Keres Chess House, Estonia"]
[Date "2021.12.15"]
[Round "5.3"]
[White "Haapsal, Maria Ioanna"]
[Black "Blokhin, Sofia"]
[Result "0-1"]
[TimeControl "90 minutes for first 40 moves and 15 min. for the rest of the game with 30 sec."]
[BlackTitle "WCM"]
[WhiteFideId "4512286"]
[BlackFideId "4508190"]
[WhiteElo "1441"]
[BlackElo "2032"]

1. e4 {[%clk 01:30:57]} {[%emt 00:00:02]} c5 {[%clk 01:30:55]} {[%emt
00:00:05]} 2. Nf3 {[%clk 01:31:19]} {[%emt 00:00:07]} e6 {[%clk 01:31:18]}
{[%emt 00:00:08]} 3. d4 {[%clk 01:31:44]} {[%emt 00:00:05]} cxd4 {[%clk
01:31:44]} {[%emt 00:00:04]} 4. Nxd4 {[%clk 01:32:07]} {[%emt 00:00:05]} a6
{[%clk 01:32:11]} {[%emt 00:00:04]} 5. c4 {[%clk 01:32:05]} {[%emt 00:00:32]}
Nf6 {[%clk 01:32:20]} {[%emt 00:00:21]} 6. Nc3 {[%clk 01:32:24]} {[%emt
00:00:10]} Bb4 {[%clk 01:32:23]} {[%emt 00:00:27]} 7. Bd3 {[%clk 01:30:57]}
{[%emt 00:01:57]} Nc6 {[%clk 01:32:24]} {[%emt 00:00:30]} 8. Nxc6 {[%clk
01:30:00]} {[%emt 00:01:27]} dxc6 {[%clk 01:32:20]} {[%emt 00:00:33]} 9. Qc2
{[%clk 01:29:18]} {[%emt 00:01:13]} e5 {[%clk 01:31:15]} {[%emt 00:01:34]} 10.
Bg5 {[%clk 01:26:56]} {[%emt 00:02:52]} h6 {[%clk 01:28:05]} {[%emt 00:03:40]}
11. Bh4 {[%clk 01:25:21]} {[%emt 00:02:05]} Qe7 {[%clk 01:24:26]} {[%emt
00:04:09]} 12. h3 {[%clk 01:16:19]} {[%emt 00:09:32]} Be6 {[%clk 01:21:51]}
{[%emt 00:03:05]} 13. a3 {[%clk 01:15:36]} {[%emt 00:01:13]} Bc5 {[%clk
01:19:28]} {[%emt 00:02:51]} 14. Bxf6 {[%clk 01:12:33]} {[%emt 00:03:34]} Qxf6
{[%clk 01:19:21]} {[%emt 00:00:37]} 15. O-O {[%clk 01:11:52]} {[%emt 00:01:11]}
g5 {[%clk 01:16:44]} {[%emt 00:03:07]} 16. Be2 {[%clk 01:01:57]} {[%emt
00:10:25]} h5 {[%clk 01:13:50]} {[%emt 00:03:23]} 17. h4 {[%clk 00:47:39]}
{[%emt 00:14:48]} gxh4 {[%clk 01:13:20]} {[%emt 00:00:59]} 18. Bf3 {[%clk
00:40:44]} {[%emt 00:07:24]} h3 {[%clk 01:10:21]} {[%emt 00:03:31]} 19. Qe2
{[%clk 00:30:11]} {[%emt 00:11:04]} hxg2 {[%clk 01:09:24]} {[%emt 00:01:26]} 20.
Bxg2 {[%clk 00:27:40]} {[%emt 00:02:59]} Rg8 {[%clk 01:08:00]} {[%emt
00:01:55]} 21. Nd1 {[%clk 00:22:15]} {[%emt 00:05:56]} Rxg2+ {[%clk 01:06:00]}
{[%emt 00:02:30]} 22. Kxg2 {[%clk 00:19:00]} {[%emt 00:03:42]} Qg5+ {[%clk
01:06:22]} {[%emt 00:00:09]} 23. Kh2 {[%clk 00:17:16]} {[%emt 00:02:13]} Qh4+
{[%clk 01:06:41]} {[%emt 00:00:12]} 24. Kg1 {[%clk 00:16:09]} {[%emt 00:01:34]}
Qg3+ {[%clk 01:06:51]} {[%emt 00:00:24]} 25. Kh1 {[%clk 00:15:47]} {[%emt
00:00:51]} Qh3+ {[%clk 01:07:14]} {[%emt 00:00:07]} 26. Kg1 {[%clk 00:15:33]}
{[%emt 00:00:44]} Ke7 {[%clk 01:07:33]} {[%emt 00:00:12]} 27. Ne3 {[%clk
00:12:40]} {[%emt 00:03:23]} Rg8+ {[%clk 01:07:41]} {[%emt 00:00:22]} 28. Ng4
{[%clk 00:11:58]} {[%emt 00:01:12]} Bxg4 {[%clk 01:07:58]} {[%emt 00:00:14]} 29.
Qd2 {[%clk 00:10:32]} {[%emt 00:01:53]} Qg3+ {[%clk 01:07:57]} {[%emt
00:00:32]} 30. Kh1 {[%clk 00:10:42]} {[%emt 00:00:21]} Bf3# {[%clk 01:08:21]}
{[%emt 00:00:07]} 0-1

[Event "Estonian Women's Chess Championship 2021"]
[Site "Tallinn, Paul Keres Chess House, Estonia"]
[Date "2021.12.15"]
[Round "5.4"]
[White "Sinitsina, Anastassia"]
[Black "Barkasheva, Sofia"]
[Result "1-0"]
[TimeControl "90 minutes for first 40 moves and 15 min. for the rest of the game with 30 sec."]
[WhiteTitle "WFM"]
[WhiteFideId "4504640"]
[BlackFideId "4510615"]
[WhiteElo "2159"]
[BlackElo "1505"]

1. Nf3 {[%clk 01:30:50]} Nf6 {[%clk 01:30:51]} 2. g3 {[%clk 01:31:07]} g6
{[%clk 01:31:16]} 3. Bg2 {[%clk 01:31:33]} Bg7 {[%clk 01:31:41]} 4. O-O {[%clk
01:31:57]} O-O {[%clk 01:32:04]} 5. d4 {[%clk 01:30:33]} d6 {[%clk 01:32:22]} 6.
b3 {[%clk 01:30:27]} c6 {[%clk 01:27:50]} 7. Bb2 {[%clk 01:30:41]} Nbd7 {[%clk
01:25:14]} 8. c4 {[%clk 01:27:48]} Ne4 {[%clk 01:19:22]} 9. Nfd2 {[%clk
01:25:17]} Nxd2 10. Nxd2 {[%clk 01:25:29]} f5 {[%clk 01:14:06]} 11. Qc2 {[%clk
01:24:16]} Nf6 {[%clk 01:08:38]} {[%emt 00:00:06]} 12. b4 f4 {[%clk 01:03:39]}
{[%emt 00:00:30]} 13. a4 {[%clk 01:11:55]} {[%emt 00:07:45]} Bf5 {[%clk
00:51:52]} {[%emt 00:12:16]} 14. Qb3 {[%clk 01:12:12]} {[%emt 00:00:13]} Kh8
{[%clk 00:35:35]} {[%emt 00:16:47]} 15. b5 {[%clk 01:11:50]} {[%emt 00:00:53]}
Qd7 {[%clk 00:29:29]} {[%emt 00:06:35]} 16. gxf4 {[%clk 01:02:29]} {[%emt
00:09:51]} d5 {[%clk 00:26:56]} {[%emt 00:03:03]} 17. Nf3 {[%clk 01:01:24]}
{[%emt 00:01:35]} Ne4 {[%clk 00:23:03]} {[%emt 00:04:23]} 18. Ne5 {[%clk
01:00:15]} {[%emt 00:01:40]} Qe6 {[%clk 00:22:08]} {[%emt 00:01:25]} 19. cxd5
{[%clk 00:59:58]} {[%emt 00:00:47]} cxd5 {[%clk 00:21:34]} {[%emt 00:01:04]} 20.
Rfc1 {[%clk 00:58:56]} {[%emt 00:01:32]} Rac8 {[%clk 00:18:10]} {[%emt
00:03:54]} 21. a5 {[%clk 00:57:28]} {[%emt 00:01:59]} Bh6 {[%clk 00:16:05]}
{[%emt 00:02:34]} 22. e3 {[%clk 00:57:25]} {[%emt 00:00:33]} g5 {[%clk
00:15:19]} {[%emt 00:01:16]} 23. fxg5 {[%clk 00:57:02]} {[%emt 00:00:53]} Bxg5
{[%clk 00:14:29]} {[%emt 00:01:20]} 24. Rxc8 {[%clk 00:56:31]} {[%emt
00:01:02]} Rxc8 {[%clk 00:13:55]} {[%emt 00:01:04]} 25. a6 {[%clk 00:53:30]}
{[%emt 00:03:30]} Bh4 {[%clk 00:12:45]} {[%emt 00:01:39]} 26. Nd3 {[%clk
00:50:13]} {[%emt 00:03:48]} Bh3 {[%clk 00:09:22]} {[%emt 00:03:52]} 27. Bxh3
{[%clk 00:37:54]} {[%emt 00:12:50]} Rg8+ {[%clk 00:06:01]} {[%emt 00:03:51]} 28.
Bg2 {[%clk 00:36:45]} {[%emt 00:01:39]} Qg4 {[%clk 00:02:29]} {[%emt 00:04:02]}
29. Nf4 {[%clk 00:36:55]} {[%emt 00:00:20]} Bxf2+ {[%clk 00:02:16]} {[%emt
00:00:43]} 30. Kh1 {[%clk 00:36:21]} {[%emt 00:01:04]} Qh4 {[%clk 00:01:45]}
{[%emt 00:01:00]} 31. Bxe4 {[%clk 00:36:31]} {[%emt 00:00:21]} dxe4 {[%clk
00:01:59]} {[%emt 00:00:16]} 32. axb7 {[%clk 00:36:10]} {[%emt 00:00:52]} Qg4
{[%clk 00:01:55]} {[%emt 00:00:34]} 33. d5+ {[%clk 00:36:27]} {[%emt 00:00:14]}
e5 {[%clk 00:02:27]} {[%emt 00:00:30]} 34. Bxe5+ {[%clk 00:37:19]} {[%emt
00:00:06]} 1-0

[Event "Estonian Women's Chess Championship 2021"]
[Site "Tallinn, Paul Keres Chess House, Estonia"]
[Date "2021.12.16"]
[Round "6.1"]
[White "Barkasheva, Sofia"]
[Black "Shadrina, Eva"]
[Result "0-1"]
[TimeControl "90 minutes for first 40 moves and 15 min. for the rest of the game with 30 sec."]
[WhiteFideId "4510615"]
[BlackFideId "4510623"]
[WhiteElo "1505"]
[BlackElo "1472"]

1. e4 {[%clk 01:30:55]} {[%emt 00:00:04]} c5 {[%clk 01:30:58]} {[%emt
00:00:02]} 2. Nf3 {[%clk 01:31:18]} {[%emt 00:00:07]} Nc6 {[%clk 01:31:24]}
{[%emt 00:00:05]} 3. d4 {[%clk 01:31:44]} {[%emt 00:00:03]} cxd4 {[%clk
01:31:45]} {[%emt 00:00:09]} 4. Nxd4 {[%clk 01:32:11]} {[%emt 00:00:04]} Nf6
{[%clk 01:32:06]} {[%emt 00:00:09]} 5. Nc3 {[%clk 01:32:34]} {[%emt 00:00:06]}
e5 {[%clk 01:32:18]} {[%emt 00:00:19]} 6. Ndb5 {[%clk 01:33:00]} {[%emt
00:00:05]} d6 {[%clk 01:32:31]} {[%emt 00:00:16]} 7. Bg5 {[%clk 01:33:19]}
{[%emt 00:00:11]} a6 {[%clk 01:32:45]} {[%emt 00:00:16]} 8. Na3 {[%clk
01:33:43]} {[%emt 00:00:05]} b5 {[%clk 01:33:07]} {[%emt 00:00:08]} 9. Nd5
{[%clk 01:33:56]} {[%emt 00:00:17]} Be7 {[%clk 01:33:27]} {[%emt 00:00:11]} 10.
Bxf6 {[%clk 01:34:21]} {[%emt 00:00:05]} Bxf6 {[%clk 01:33:46]} {[%emt
00:00:11]} 11. c3 {[%clk 01:34:45]} {[%emt 00:00:06]} O-O {[%clk 01:33:53]}
{[%emt 00:00:22]} 12. Nc2 {[%clk 01:35:11]} {[%emt 00:00:04]} Bg5 {[%clk
01:33:56]} {[%emt 00:00:26]} 13. a4 {[%clk 01:35:19]} {[%emt 00:00:23]} bxa4
{[%clk 01:34:13]} {[%emt 00:00:13]} 14. Rxa4 {[%clk 01:35:43]} {[%emt
00:00:07]} a5 {[%clk 01:34:35]} {[%emt 00:00:09]} 15. Bc4 {[%clk 01:36:04]}
{[%emt 00:00:07]} Rb8 {[%clk 01:34:37]} {[%emt 00:00:29]} 16. b3 {[%clk
01:36:24]} {[%emt 00:00:10]} Kh8 {[%clk 01:32:10]} {[%emt 00:02:57]} 17. Nce3
{[%clk 01:32:58]} {[%emt 00:03:56]} Ne7 {[%clk 01:05:38]} {[%emt 00:27:01]} 18.
h4 {[%clk 01:14:46]} {[%emt 00:18:42]} Bxe3 {[%clk 00:54:58]} {[%emt 00:11:11]}
19. Nxe3 {[%clk 01:11:28]} {[%emt 00:03:48]} f5 {[%clk 00:51:51]} {[%emt
00:03:37]} 20. exf5 {[%clk 01:04:09]} {[%emt 00:07:49]} Bxf5 {[%clk 00:47:22]}
{[%emt 00:04:59]} 21. Nxf5 {[%clk 00:22:32]} {[%emt 00:42:07]} Rxf5 {[%clk
00:43:30]} {[%emt 00:04:22]} 22. Bd5 {[%clk 00:11:51]} {[%emt 00:11:10]} Qb6
{[%clk 00:36:10]} {[%emt 00:07:51]} 23. O-O {[%clk 00:11:19]} {[%emt 00:01:02]}
Rbf8 {[%clk 00:35:11]} {[%emt 00:01:29]} 24. Ra2 {[%clk 00:08:51]} {[%emt
00:02:58]} Qc5 {[%clk 00:30:33]} {[%emt 00:05:08]} 25. c4 {[%clk 00:07:59]}
{[%emt 00:01:22]} Rf4 {[%clk 00:28:56]} {[%emt 00:02:07]} 26. Rd2 {[%clk
00:04:17]} {[%emt 00:04:12]} Rxh4 {[%clk 00:25:16]} {[%emt 00:04:10]} 27. g3
{[%clk 00:04:10]} {[%emt 00:00:37]} Rh6 {[%clk 00:25:20]} {[%emt 00:00:27]} 28.
Kg2 {[%clk 00:03:47]} {[%emt 00:00:53]} Rhf6 {[%clk 00:22:44]} {[%emt
00:03:06]} 29. Be4 {[%clk 00:02:51]} {[%emt 00:01:24]} Rh6 {[%clk 00:13:03]}
{[%emt 00:10:13]} 30. Qg4 {[%clk 00:02:18]} {[%emt 00:00:59]} Qc7 {[%clk
00:10:17]} {[%emt 00:03:20]} 31. Rfd1 {[%clk 00:02:17]} {[%emt 00:00:30]} Ng8
{[%clk 00:06:56]} {[%emt 00:03:52]} 32. Qe2 {[%clk 00:01:18]} {[%emt 00:01:29]}
Rff6 {[%clk 00:05:35]} {[%emt 00:01:50]} 33. Rd5 {[%clk 00:01:30]} {[%emt
00:00:18]} Ne7 {[%clk 00:04:58]} {[%emt 00:01:07]} 34. Rb5 {[%clk 00:01:35]}
{[%emt 00:00:24]} Nc6 {[%clk 00:03:52]} {[%emt 00:01:37]} 35. Qd2 {[%clk
00:01:22]} {[%emt 00:00:42]} Rf8 {[%clk 00:01:42]} {[%emt 00:02:40]} 36. Qd5
{[%clk 00:01:19]} {[%emt 00:00:33]} Nd4 {[%clk 00:01:31]} {[%emt 00:00:42]} 37.
Rxa5 {[%clk 00:00:55]} {[%emt 00:00:54]} Qd7 {[%clk 00:01:10]} {[%emt
00:00:51]} 38. Ra2 {[%clk 00:00:47]} {[%emt 00:00:38]} Nxb3 {[%clk 00:00:45]}
{[%emt 00:00:56]} 39. Rb2 {[%clk 00:00:46]} {[%emt 00:00:30]} Nd4 {[%clk
00:01:03]} {[%emt 00:00:12]} 40. Qb7 {[%clk 00:15:34]} {[%emt 00:00:42]} Qh3+
{[%clk 00:16:04]} {[%emt 00:00:29]} 41. Kg1 {[%clk 00:15:40]} {[%emt 00:00:22]}
Qh2+ {[%clk 00:10:54]} {[%emt 00:05:41]} 42. Kf1 {[%clk 00:15:54]} {[%emt
00:00:16]} Qxg3 {[%clk 00:10:21]} {[%emt 00:01:04]} 43. Ra1 {[%clk 00:02:18]}
{[%emt 00:14:06]} Rhf6 {[%clk 00:08:34]} {[%emt 00:02:16]} 44. Raa2 {[%clk
00:02:13]} {[%emt 00:00:35]} Qe3 {[%clk 00:08:03]} {[%emt 00:01:01]} 45. f3
{[%clk 00:01:40]} {[%emt 00:01:03]} Nxf3 {[%clk 00:06:33]} {[%emt 00:02:00]} 46.
Rf2 {[%clk 00:01:02]} {[%emt 00:01:08]} Nd2+ {[%clk 00:06:42]} {[%emt
00:00:22]} 47. Kg1 {[%clk 00:01:20]} {[%emt 00:00:11]} Qxf2+ {[%clk 00:07:02]}
{[%emt 00:00:11]} 48. Kh1 {[%clk 00:01:46]} {[%emt 00:00:04]} Qf1+ {[%clk
00:07:19]} {[%emt 00:00:13]} 49. Kh2 {[%clk 00:02:07]} {[%emt 00:00:08]} Rh6+
{[%clk 00:07:39]} {[%emt 00:00:11]} 50. Kg3 {[%clk 00:02:29]} {[%emt 00:00:08]}
Qf2+ {[%clk 00:07:54]} {[%emt 00:00:15]} 51. Kg4 {[%clk 00:02:52]} {[%emt
00:00:06]} Qf4# {[%clk 00:08:16]} {[%emt 00:00:08]} 0-1

[Event "Estonian Women's Chess Championship 2021"]
[Site "Tallinn, Paul Keres Chess House, Estonia"]
[Date "2021.12.16"]
[Round "6.2"]
[White "Levchenko, Marina"]
[Black "Ivanova, Lidia"]
[Result "1-0"]
[TimeControl "90 minutes for first 40 moves and 15 min. for the rest of the game with 30 sec."]
[WhiteFideId "4508548"]
[BlackFideId "4506480"]
[WhiteElo "1367"]
[BlackElo "1443"]

1. c4 {[%clk 01:30:56]} {[%emt 00:00:01]} Nf6 {[%clk 01:30:54]} {[%emt
00:00:06]} 2. Nc3 {[%clk 01:31:10]} {[%emt 00:00:16]} g6 {[%clk 01:31:18]}
{[%emt 00:00:06]} 3. d4 {[%clk 01:31:30]} {[%emt 00:00:10]} d5 {[%clk
01:31:15]} {[%emt 00:00:33]} 4. cxd5 {[%clk 01:30:05]} {[%emt 00:01:56]} Nxd5
{[%clk 01:31:39]} {[%emt 00:00:06]} 5. e4 {[%clk 01:30:03]} {[%emt 00:00:32]}
Nxc3 {[%clk 01:32:02]} {[%emt 00:00:07]} 6. bxc3 {[%clk 01:30:24]} {[%emt
00:00:08]} c5 {[%clk 01:31:49]} {[%emt 00:00:42]} 7. Be3 {[%clk 01:26:05]}
{[%emt 00:04:49]} Bg7 {[%clk 01:32:04]} {[%emt 00:00:15]} 8. h3 {[%clk
01:24:03]} {[%emt 00:02:32]} O-O {[%clk 01:31:21]} {[%emt 00:01:13]} 9. Qd2
{[%clk 01:19:51]} {[%emt 00:04:42]} Qa5 {[%clk 01:29:23]} {[%emt 00:02:28]} 10.
Rc1 {[%clk 01:16:45]} {[%emt 00:03:36]} cxd4 {[%clk 01:27:43]} {[%emt
00:02:10]} 11. cxd4 {[%clk 01:12:00]} {[%emt 00:05:16]} Qxd2+ {[%clk 01:27:55]}
{[%emt 00:00:17]} 12. Kxd2 {[%clk 01:12:22]} {[%emt 00:00:08]} Rd8 {[%clk
01:21:11]} {[%emt 00:07:14]} 13. Ke1 {[%clk 01:08:00]} {[%emt 00:04:51]} Na6
{[%clk 01:08:29]} {[%emt 00:13:12]} 14. Nf3 {[%clk 00:57:30]} {[%emt 00:11:00]}
Nb4 {[%clk 01:02:51]} {[%emt 00:06:08]} 15. a3 {[%clk 00:49:06]} {[%emt
00:08:55]} Nc6 {[%clk 01:03:08]} {[%emt 00:00:12]} 16. d5 {[%clk 00:48:43]}
{[%emt 00:00:54]} Ne5 {[%clk 01:03:19]} {[%emt 00:00:18]} 17. Nd4 {[%clk
00:47:35]} {[%emt 00:01:38]} Nc6 {[%clk 00:50:16]} {[%emt 00:13:33]} 18. Nb5
{[%clk 00:37:18]} {[%emt 00:10:48]} Na5 {[%clk 00:39:12]} {[%emt 00:11:33]} 19.
Nc7 {[%clk 00:35:21]} {[%emt 00:02:27]} Bd7 {[%clk 00:39:19]} {[%emt 00:00:23]}
20. Nxa8 {[%clk 00:34:37]} {[%emt 00:01:15]} Rxa8 {[%clk 00:39:33]} {[%emt
00:00:16]} 21. Rc7 {[%clk 00:28:53]} {[%emt 00:06:14]} Ba4 {[%clk 00:39:18]}
{[%emt 00:00:45]} 22. Bd2 {[%clk 00:27:04]} {[%emt 00:02:19]} b6 {[%clk
00:37:36]} {[%emt 00:02:11]} 23. Bb4 {[%clk 00:25:21]} {[%emt 00:02:14]} e6
{[%clk 00:35:53]} {[%emt 00:02:13]} 24. dxe6 {[%clk 00:23:45]} {[%emt
00:02:06]} fxe6 {[%clk 00:36:17]} {[%emt 00:00:06]} 25. Ba6 {[%clk 00:21:19]}
{[%emt 00:02:56]} Bd4 {[%clk 00:33:05]} {[%emt 00:03:41]} 26. Ke2 {[%clk
00:20:14]} {[%emt 00:04:09]} Nb3 {[%clk 00:34:54]} {[%emt 00:00:37]} 27. Bc3
{[%clk 00:15:19]} {[%emt 00:05:26]} Rf8 {[%clk 00:29:54]} {[%emt 00:05:30]} 28.
f3 {[%clk 00:13:47]} {[%emt 00:02:03]} e5 {[%clk 00:26:45]} {[%emt 00:03:39]}
29. Bc4+ {[%clk 00:11:28]} {[%emt 00:02:49]} Kh8 {[%clk 00:27:05]} {[%emt
00:00:10]} 30. Bxb3 {[%clk 00:10:53]} {[%emt 00:01:06]} Bxb3 {[%clk 00:26:58]}
{[%emt 00:00:36]} 31. Bxd4 {[%clk 00:10:46]} {[%emt 00:00:38]} exd4 {[%clk
00:27:19]} {[%emt 00:00:09]} 32. Rb1 {[%clk 00:10:18]} {[%emt 00:00:58]} Bc2
{[%clk 00:26:55]} {[%emt 00:00:52]} 33. Rxc2 {[%clk 00:10:33]} {[%emt
00:00:17]} 1-0

[Event "Estonian Women's Chess Championship 2021"]
[Site "Tallinn, Paul Keres Chess House, Estonia"]
[Date "2021.12.16"]
[Round "6.3"]
[White "Blokhin, Sofia"]
[Black "Narva, Triin"]
[Result "1-0"]
[TimeControl "90 minutes for first 40 moves and 15 min. for the rest of the game with 30 sec."]
[WhiteTitle "WCM"]
[BlackTitle "WFM"]
[WhiteFideId "4508190"]
[BlackFideId "4502680"]
[WhiteElo "2032"]
[BlackElo "2112"]

1. e4 {[%clk 01:30:59]} d6 {[%clk 01:29:55]} {[%emt 00:01:05]} 2. d4 {[%clk
01:31:20]} {[%emt 00:00:09]} g6 {[%clk 01:29:59]} {[%emt 00:00:26]} 3. Nc3
{[%clk 01:31:36]} {[%emt 00:00:14]} Bg7 {[%clk 01:30:14]} {[%emt 00:00:15]} 4.
f3 {[%clk 01:31:51]} {[%emt 00:00:15]} a6 {[%clk 01:30:33]} {[%emt 00:00:11]} 5.
Be3 {[%clk 01:32:10]} {[%emt 00:00:10]} b5 {[%clk 01:30:48]} {[%emt 00:00:16]}
6. a3 {[%clk 01:31:58]} {[%emt 00:00:43]} Nd7 {[%clk 01:29:38]} {[%emt
00:01:39]} 7. Qd2 {[%clk 01:28:52]} {[%emt 00:03:36]} Bb7 {[%clk 01:28:47]}
{[%emt 00:01:21]} 8. O-O-O {[%clk 01:26:40]} {[%emt 00:02:42]} Rc8 {[%clk
01:28:47]} {[%emt 00:00:31]} 9. g4 {[%clk 01:25:40]} {[%emt 00:01:30]} c5
{[%clk 01:12:57]} {[%emt 00:16:20]} 10. h4 {[%clk 01:22:10]} {[%emt 00:04:00]}
h5 {[%clk 00:43:45]} {[%emt 00:29:42]} 11. gxh5 {[%clk 01:20:47]} {[%emt
00:01:52]} Rxh5 {[%clk 00:44:01]} {[%emt 00:00:13]} 12. Nge2 {[%clk 01:15:31]}
{[%emt 00:05:46]} b4 {[%clk 00:29:08]} {[%emt 00:15:25]} 13. axb4 {[%clk
01:10:48]} {[%emt 00:05:13]} cxb4 {[%clk 00:29:29]} {[%emt 00:00:08]} 14. Nb1
{[%clk 01:10:16]} {[%emt 00:01:02]} b3 {[%clk 00:21:47]} {[%emt 00:08:13]} 15.
c3 {[%clk 01:07:08]} {[%emt 00:03:36]} Ra5 {[%clk 00:19:12]} {[%emt 00:03:06]}
16. h5 {[%clk 01:02:45]} {[%emt 00:04:53]} Rxh5 {[%clk 00:03:16]} {[%emt
00:16:26]} 17. Rxh5 {[%clk 01:02:48]} {[%emt 00:00:26]} gxh5 {[%clk 00:03:43]}
{[%emt 00:00:04]} 18. Ng3 {[%clk 00:58:08]} {[%emt 00:05:09]} Qa5 {[%clk
00:03:40]} {[%emt 00:00:33]} 19. Bh3 {[%clk 00:55:25]} {[%emt 00:03:13]} Bc6
{[%clk 00:03:26]} {[%emt 00:00:45]} 20. Nf5 {[%clk 00:54:10]} {[%emt 00:01:45]}
Bf8 {[%clk 00:02:43]} {[%emt 00:01:12]} 21. Qg2 {[%clk 00:45:12]} {[%emt
00:09:28]} Ngf6 {[%clk 00:02:26]} {[%emt 00:00:48]} 22. Qg5 {[%clk 00:40:52]}
{[%emt 00:04:50]} Bb5 {[%clk 00:00:39]} {[%emt 00:02:18]} 23. Bf1 {[%clk
00:34:19]} {[%emt 00:07:03]} Qa1 {[%clk 00:00:39]} {[%emt 00:00:30]} 24. Ng7+
{[%clk 00:26:00]} {[%emt 00:08:49]} Kd8 {[%clk 00:00:48]} {[%emt 00:00:22]} 25.
Nxh5 {[%clk 00:24:21]} {[%emt 00:02:08]} Bxf1 {[%clk 00:00:36]} {[%emt
00:00:42]} 26. Rxf1 {[%clk 00:24:06]} {[%emt 00:00:46]} Nxh5 {[%clk 00:00:36]}
{[%emt 00:00:30]} 27. Qxh5 {[%clk 00:24:26]} {[%emt 00:00:09]} Ke8 {[%clk
00:00:54]} {[%emt 00:00:12]} 28. e5 {[%clk 00:23:13]} {[%emt 00:01:43]} dxe5
{[%clk 00:00:44]} {[%emt 00:00:40]} 29. dxe5 {[%clk 00:23:28]} {[%emt
00:00:15]} Qa5 {[%clk 00:01:02]} {[%emt 00:00:12]} 30. f4 {[%clk 00:22:23]}
{[%emt 00:01:35]} Nf6 {[%clk 00:00:44]} {[%emt 00:00:48]} 31. Qh3 {[%clk
00:22:14]} {[%emt 00:00:38]} Nd7 {[%clk 00:01:00]} {[%emt 00:00:14]} 32. e6
{[%clk 00:21:30]} {[%emt 00:01:14]} fxe6 {[%clk 00:01:13]} {[%emt 00:00:17]} 33.
Qxe6 {[%clk 00:21:49]} {[%emt 00:00:12]} Qb5 {[%clk 00:00:56]} {[%emt
00:00:47]} 34. Rd1 {[%clk 00:21:16]} {[%emt 00:01:02]} Rc7 {[%clk 00:00:45]}
{[%emt 00:00:41]} 35. Qg6+ {[%clk 00:21:24]} {[%emt 00:00:21]} Kd8 {[%clk
00:01:00]} {[%emt 00:00:15]} 36. Bb6 {[%clk 00:20:17]} {[%emt 00:01:37]} e5
{[%clk 00:01:01]} {[%emt 00:00:29]} 37. Qf7 {[%clk 00:17:51]} {[%emt 00:02:56]}
Bc5 {[%clk 00:00:44]} {[%emt 00:00:47]} 38. Qg8+ {[%clk 00:12:01]} {[%emt
00:06:21]} Ke7 {[%clk 00:01:10]} {[%emt 00:00:04]} 39. Bxc7 {[%clk 00:08:11]}
{[%emt 00:04:20]} Be3+ {[%clk 00:01:33]} {[%emt 00:00:07]} 40. Nd2 {[%clk
00:23:36]} {[%emt 00:00:06]} Qa4 {[%clk 00:15:35]} {[%emt 00:01:29]} 41. Qh7+
{[%clk 00:20:58]} {[%emt 00:03:07]} Ke8 {[%clk 00:12:25]} {[%emt 00:03:39]} 42.
Qg6+ {[%clk 00:21:03]} {[%emt 00:00:25]} Ke7 {[%clk 00:12:41]} {[%emt
00:00:15]} 43. Bd6+ {[%clk 00:21:20]} {[%emt 00:00:14]} Kd8 {[%clk 00:12:04]}
{[%emt 00:01:07]} 44. Qg8+ {[%clk 00:21:28]} {[%emt 00:00:22]} Nf8 {[%clk
00:12:29]} {[%emt 00:00:04]} 45. Qxf8+ {[%clk 00:21:44]} {[%emt 00:00:14]} Kd7
{[%clk 00:12:55]} {[%emt 00:00:04]} 46. Qe7+ {[%clk 00:22:03]} {[%emt
00:00:11]} Kc6 {[%clk 00:13:10]} {[%emt 00:00:16]} 47. Qe8+ {[%clk 00:22:21]}
{[%emt 00:00:12]} 1-0